fUST/lending_fUST_20240715
["ID","MTS","AMOUNT","RATE_DAILY","PERIOD"]
[332120873,1720972804006,2125.9283857,0.00014999,2]
[332120874,1720972813933,1623.73351642,0.00014999,2]
[332120875,1720972860870,725.71765032,0.00014999,2]
[332120877,1720972906202,5650.7816966,0.00015379,2]
[332120878,1720972919941,697.71792645,0.00014999,2]
[332120879,1720972924803,7146.56895056,0.00014998,2]
[332120880,1720972997175,154.79952594,0.00014999,2]
[332120881,1720973008463,155.42805707,0.00014999,2]
[332120882,1720973033062,189.45170603,0.00014999,2]
[332120885,1720973083434,284.01854297,0.00014999,2]
[332120887,1720973088944,459.17360195,0.00014999,2]
[332120889,1720973101243,187.84280407,0.00014999,2]
[332120890,1720973111625,6814.10426376,0.00014998,2]
[332120891,1720973113045,1688.92246067,0.00014999,2]
[332120892,1720973113940,281.23363357,0.00014999,2]
[332120893,1720973115752,182.82989065,0.00014999,2]
[332120894,1720973143330,248.43374368,0.00014999,2]
[332120895,1720973152183,-318.1486588,0.00016155,2]
[332120896,1720973155847,319.36064892,0.00014999,2]
[332120897,1720973170881,318.82736005,0.00014999,2]
[332120898,1720973176860,155.79344934,0.00014999,2]
[332120899,1720973180824,764.38633793,0.00014999,4]
[332120900,1720973193577,159.76779207,0.00014999,2]
[332120901,1720973206420,3082.43601367,0.00014999,2]
[332120902,1720973215279,174.69015234,0.00014999,2]
[332120903,1720973221875,154.96178437,0.00014999,2]
[332120904,1720973224179,458.9948825,0.00015379,2]
[332120905,1720973225111,-287.67977048,0.00016155,2]
[332120906,1720973225132,-300.0,0.00016254,2]
[332120907,1720973225153,-95.32917254,0.00016255,2]
[332120908,1720973228126,-948.82918498,0.00016155,2]
[332120909,1720973228152,-31.71562751,0.00016255,2]
[332120910,1720973234095,-967.449082,0.00016255,2]
[332120911,1720973240087,458.65976805,0.00014999,2]
[332120912,1720973240152,-254.06954482,0.00016255,2]
[332120914,1720973246153,-1055.85633765,0.00016255,2]
[332120915,1720973250103,-250.0,0.00016255,2]
[332120916,1720973281096,155.10093759,0.00014999,2]
[332120917,1720973335082,159.81747957,0.00014999,2]
[332120918,1720973346091,-300.0,0.00016254,2]
[332120919,1720973346112,-287.0,0.00016254,2]
[332120920,1720973346133,-5525.07589206,0.00016255,2]
[332120921,1720973346155,-22553.53434519,0.00016255,2]
[332120922,1720973346175,-18518.0136813,0.00016255,2]
[332120923,1720973352107,-3484.24076525,0.00016255,2]
[332120924,1720973357175,-227.53766147,0.00016255,2]
[332120925,1720973357197,-287.16282876,0.00016255,2]
[332120926,1720973357218,-164.119983,0.00016299,2]
[332120927,1720973357238,-164.119983,0.00016421,2]
[332120928,1720973357258,-164.119983,0.00016542,2]
[332120929,1720973357278,-250.0,0.00016578,2]
[332120930,1720973357301,-164.119983,0.00016663,2]
[332120931,1720973357321,-164.119983,0.00016785,2]
[332120932,1720973357341,-276.88795357,0.0001683,2]
[332120933,1720973357361,-164.119983,0.00016906,2]
[332120934,1720973357382,-164.119983,0.00017027,2]
[332120935,1720973357403,-164.119983,0.00017149,2]
[332120936,1720973357423,-420.0,0.00017879,2]
[332120937,1720973357443,-447.58228251,0.00018,2]
[332120938,1720973363114,-154.69833824,0.00018,2]
[332120939,1720973368183,-106.87451912,0.00018,2]
[332121004,1720973432712,-191.30476359,0.00018798,2]
[332121005,1720973432726,-371.91119234,0.000189,2]
[332121006,1720973432737,-2272.48757049,0.00019019,2]
[332121059,1720973438540,-15.9106296,0.00019019,2]
[332121076,1720973438693,-98.27379385,0.00019019,2]
[332121091,1720973438816,-613.32800606,0.00019019,2]
[332121093,1720973438826,-814.17379785,0.00019039,3]
[332121094,1720973438836,-250.0,0.00019041,2]
[332121095,1720973438846,-369.746236,0.00019075,2]
[332121096,1720973438855,-160.607646,0.00019178,2]
[332121097,1720973438867,-169.72486,0.00019178,2]
[332121098,1720973438876,-180.0,0.00019999,2]
[332121099,1720973438885,-771.81767868,0.0002,2]
[332121100,1720973438896,-154.57491897,0.0002,2]
[332121101,1720973438905,-420.56119236,0.0002,2]
[332121102,1720973438915,-154.57491897,0.0002,2]
[332121103,1720973438925,-158.72193478,0.0002,2]
[332121104,1720973438934,-1562.0367771,0.00020931,2]
[332121105,1720973438944,-285.0,0.00021095,2]
[332121106,1720973438954,-750.0,0.00021096,2]
[332121107,1720973438963,-167.9191853,0.00021125,2]
[332121108,1720973438973,-1632.1092417,0.00021216,2]
[332121109,1720973438982,-276.6002656,0.00021818,2]
[332121110,1720973438992,-371.91119234,0.000239,2]
[332121111,1720973439003,-150.112233,0.00024,2]
[332121112,1720973439013,-189.10340676,0.00024121,2]
[332121113,1720973439022,-982.12100785,0.00024121,2]
[332121114,1720973439032,-153.0,0.00024384,2]
[332121115,1720973439042,-206.2454267,0.00024384,2]
[332121116,1720973439051,-306.0,0.00024384,2]
[332121117,1720973439061,-150.112233,0.000244,4]
[332121118,1720973439070,-5955.76565967,0.00024557,3]
[332121119,1720973439080,-830.22553684,0.00024557,2]
[332121120,1720973439089,-150.711,0.00024598,2]
[332121121,1720973439099,-503.0,0.00024598,2]
[332121122,1720973439109,-37600.3790681,0.00024647,3]
[332121123,1720973439120,-500.0,0.00024656,2]
[332121124,1720973439130,-267.91919042,0.00024656,2]
[332121125,1720973439139,-316.47720021,0.00024656,2]
[332121126,1720973439149,-500.0,0.00024657,2]
[332121127,1720973439159,-502.39202574,0.00024657,2]
[332121128,1720973439170,-500.0,0.00024657,2]
[332121129,1720973439181,-500.0,0.00024657,2]
[332121130,1720973439190,-500.0,0.00024657,2]
[332121131,1720973439201,-503.18513919,0.00024657,2]
[332121132,1720973439211,-500.0,0.00024657,2]
[332121133,1720973439222,-500.0,0.00024657,2]
[332121134,1720973439233,-500.0,0.00024657,2]
[332121135,1720973439244,-500.0,0.00024657,2]
[332121136,1720973439253,-500.0,0.00024657,2]
[332121137,1720973439263,-500.0,0.00024657,2]
[332121138,1720973439273,-500.0,0.00024657,2]
[332121139,1720973439282,-500.0,0.00024657,2]
[332121140,1720973439292,-500.0,0.00024657,2]
[332121141,1720973439301,-500.0,0.00024657,2]
[332121142,1720973439311,-500.0,0.00024657,2]
[332121143,1720973439321,-500.0,0.00024657,2]
[332121144,1720973439331,-500.0,0.00024657,2]
[332121145,1720973439340,-500.0,0.00024657,2]
[332121146,1720973439350,-521.79621132,0.00024657,2]
[332121147,1720973439359,-501.35180134,0.00024657,2]
[332121148,1720973439371,-500.0,0.00024657,2]
[332121149,1720973439381,-505.13763152,0.00024657,2]
[332121150,1720973439390,-501.2984015,0.00024657,2]
[332121151,1720973439399,-500.0,0.00024657,2]
[332121152,1720973439408,-500.0,0.00024657,2]
[332121153,1720973439418,-500.0,0.00024657,2]
[332121154,1720973439427,-500.0,0.00024657,2]
[332121155,1720973439436,-500.0,0.00024657,2]
[332121156,1720973439446,-500.0,0.00024657,2]
[332121157,1720973439456,-500.0,0.00024657,2]
[332121158,1720973439466,-500.0,0.00024657,2]
[332121159,1720973439476,-500.0,0.00024657,2]
[332121160,1720973439486,-500.0,0.00024657,2]
[332121161,1720973439579,-500.0,0.00024657,2]
[332121162,1720973439589,-500.0,0.00024657,2]
[332121163,1720973439599,-500.0,0.00024657,2]
[332121164,1720973439609,-287.10532473,0.00024657,2]
[332121165,1720973439619,-500.0,0.00024657,2]
[332121166,1720973439629,-1500.0,0.00024657,2]
[332121167,1720973439639,-500.0,0.00024657,2]
[332121168,1720973439650,-511.93,0.00024657,2]
[332121169,1720973439660,-500.0,0.00024657,2]
[332121170,1720973439670,-500.0,0.00024657,2]
[332121171,1720973439679,-500.0,0.00024657,2]
[332121172,1720973439689,-500.0,0.00024657,2]
[332121173,1720973439700,-500.0,0.00024657,2]
[332121174,1720973439709,-500.0,0.00024657,2]
[332121175,1720973439719,-503.20311433,0.00024657,2]
[332121176,1720973439734,-500.0,0.00024657,2]
[332121177,1720973439744,-500.0,0.00024657,2]
[332121178,1720973439754,-508.70794348,0.00024657,2]
[332121179,1720973439763,-500.0,0.00024657,2]
[332121180,1720973439774,-500.0,0.00024657,2]
[332121181,1720973439784,-500.0,0.00024657,2]
[332121182,1720973439796,-500.0,0.00024657,2]
[332121183,1720973439807,-500.0,0.00024657,2]
[332121184,1720973439816,-500.0,0.00024657,2]
[332121185,1720973439825,-369.38793993,0.00024657,2]
[332121186,1720973439835,-500.0,0.00024657,2]
[332121187,1720973439845,-535.06,0.00024657,2]
[332121188,1720973439855,-500.0,0.00024657,2]
[332121189,1720973439865,-500.0,0.00024657,2]
[332121190,1720973439875,-538.3915727,0.00024657,2]
[332121191,1720973439884,-500.0,0.00024657,2]
[332121192,1720973439894,-721.61,0.00024657,2]
[332121193,1720973439905,-500.0,0.00024657,2]
[332121194,1720973439916,-500.0,0.00024657,2]
[332121195,1720973439928,-500.0,0.00024657,2]
[332121196,1720973439938,-500.0,0.00024657,2]
[332121198,1720973439948,-719.78,0.00024657,2]
[332121200,1720973439958,-500.0,0.00024657,2]
[332121202,1720973439967,-500.0,0.00024657,2]
[332121203,1720973439977,-500.0,0.00024657,2]
[332121204,1720973439986,-500.0,0.00024657,2]
[332121206,1720973439995,-506.90168699,0.00024657,2]
[332121207,1720973440005,-500.0,0.00024657,2]
[332121208,1720973440014,-500.0,0.00024657,2]
[332121209,1720973440023,-500.0,0.00024657,2]
[332121210,1720973440033,-518.24128802,0.00024657,2]
[332121211,1720973440042,-500.0,0.00024657,2]
[332121212,1720973440051,-500.0,0.00024657,2]
[332121213,1720973440060,-513.0102623,0.00024657,2]
[332121214,1720973440069,-500.0,0.00024657,2]
[332121215,1720973440078,-500.0,0.00024657,2]
[332121216,1720973440088,-500.0,0.00024657,2]
[332121217,1720973440097,-500.0,0.00024657,2]
[332121219,1720973440107,-430.41526519,0.00024657,2]
[332121221,1720973440116,-500.0,0.00024657,2]
[332121223,1720973440125,-500.0,0.00024657,2]
[332121224,1720973440134,-500.0,0.00024657,2]
[332121225,1720973440144,-500.0,0.00024657,2]
[332121226,1720973440153,-500.0,0.00024657,2]
[332121227,1720973440163,-500.0,0.00024657,2]
[332121228,1720973440172,-500.0,0.00024657,2]
[332121229,1720973440181,-500.0,0.00024657,2]
[332121230,1720973440190,-500.0,0.00024657,2]
[332121231,1720973440200,-500.0,0.00024657,2]
[332121232,1720973440209,-522.25230848,0.00024657,2]
[332121233,1720973440218,-500.0,0.00024657,2]
[332121234,1720973440227,-500.0,0.00024657,2]
[332121235,1720973440236,-500.0,0.00024657,2]
[332121236,1720973440245,-500.0,0.00024657,2]
[332121237,1720973440254,-500.0,0.00024657,2]
[332121238,1720973440263,-500.0,0.00024657,2]
[332121239,1720973440272,-500.0,0.00024657,2]
[332121240,1720973440281,-500.0,0.00024657,2]
[332121241,1720973440290,-500.0,0.00024657,2]
[332121242,1720973440300,-500.0,0.00024657,2]
[332121243,1720973440310,-500.0,0.00024657,2]
[332121244,1720973440321,-500.0,0.00024657,2]
[332121245,1720973440333,-500.0,0.00024657,2]
[332121246,1720973440342,-500.0,0.00024657,2]
[332121247,1720973440352,-500.0,0.00024657,2]
[332121248,1720973440362,-500.0,0.00024657,2]
[332121249,1720973440374,-200.0,0.00024657,7]
[332121250,1720973440383,-500.0,0.00024657,2]
[332121251,1720973440391,-500.0,0.00024657,2]
[332121252,1720973440400,-500.0,0.00024657,2]
[332121253,1720973440410,-500.0,0.00024657,2]
[332121254,1720973440418,-500.0,0.00024657,2]
[332121255,1720973440427,-553.31966395,0.00024657,2]
[332121256,1720973440436,-503.21029489,0.00024657,2]
[332121257,1720973440447,-500.0,0.00024657,2]
[332121258,1720973440456,-500.0,0.00024657,2]
[332121259,1720973440465,-500.0,0.00024657,2]
[332121260,1720973440475,-500.0,0.00024657,2]
[332121261,1720973440484,-500.0,0.00024657,2]
[332121262,1720973440493,-500.0,0.00024657,2]
[332121263,1720973440502,-597.24970791,0.00024657,2]
[332121264,1720973440512,-523.63624665,0.00024657,2]
[332121265,1720973440520,-500.0,0.00024657,2]
[332121267,1720973440530,-500.0,0.00024657,2]
[332121269,1720973440539,-500.0,0.00024657,2]
[332121271,1720973440549,-500.0,0.00024657,2]
[332121273,1720973440558,-500.0,0.00024657,2]
[332121275,1720973440567,-500.0,0.00024657,2]
[332121277,1720973440576,-500.0,0.00024657,2]
[332121279,1720973440586,-500.0,0.00024657,2]
[332121281,1720973440595,-500.0,0.00024657,2]
[332121283,1720973440604,-500.0,0.00024657,2]
[332121284,1720973440613,-500.0,0.00024657,2]
[332121285,1720973440623,-500.0,0.00024657,2]
[332121286,1720973440631,-500.0,0.00024657,2]
[332121287,1720973440640,-500.0,0.00024657,2]
[332121288,1720973440650,-501.38527307,0.00024657,2]
[332121289,1720973440659,-500.0,0.00024657,2]
[332121290,1720973440668,-500.0,0.00024657,2]
[332121291,1720973440678,-500.0,0.00024657,2]
[332121292,1720973440687,-500.0,0.00024657,2]
[332121293,1720973440696,-500.0,0.00024657,2]
[332121294,1720973440705,-500.0,0.00024657,2]
[332121295,1720973440715,-500.0,0.00024657,2]
[332121296,1720973440730,-500.0,0.00024657,2]
[332121297,1720973440739,-500.0,0.00024657,2]
[332121298,1720973440749,-500.0,0.00024657,2]
[332121299,1720973440759,-500.0,0.00024657,2]
[332121300,1720973440769,-500.0,0.00024657,2]
[332121301,1720973440778,-500.0,0.00024657,2]
[332121302,1720973440786,-500.0,0.00024657,2]
[332121303,1720973440796,-500.0,0.00024657,2]
[332121304,1720973440810,-500.0,0.00024657,2]
[332121305,1720973440820,-500.0,0.00024657,2]
[332121306,1720973440829,-500.0,0.00024657,2]
[332121307,1720973440839,-501.20135151,0.00024657,2]
[332121308,1720973440849,-500.0,0.00024657,2]
[332121309,1720973440858,-500.0,0.00024657,2]
[332121310,1720973440868,-500.0,0.00024657,2]
[332121311,1720973440877,-500.0,0.00024657,2]
[332121312,1720973440886,-500.0,0.00024657,2]
[332121313,1720973440896,-325.93657108,0.00024657,2]
[332121314,1720973440905,-500.0,0.00024657,2]
[332121315,1720973440915,-500.0,0.00024657,2]
[332121316,1720973440925,-500.0,0.00024657,2]
[332121317,1720973440934,-500.0,0.00024657,2]
[332121318,1720973440943,-500.0,0.00024657,2]
[332121319,1720973440954,-500.0,0.00024657,2]
[332121320,1720973440964,-500.0,0.00024657,2]
[332121321,1720973440974,-208.80157291,0.00024657,2]
[332121322,1720973440986,-500.0,0.00024657,2]
[332121323,1720973440995,-500.0,0.00024657,2]
[332121324,1720973441006,-500.0,0.00024657,2]
[332121325,1720973441016,-500.0,0.00024657,2]
[332121326,1720973441026,-500.0,0.00024657,2]
[332121327,1720973441036,-500.0,0.00024657,2]
[332121328,1720973441048,-500.0,0.00024657,2]
[332121329,1720973441058,-521.9283635,0.00024657,2]
[332121330,1720973441067,-504.10159939,0.00024657,2]
[332121331,1720973441077,-500.0,0.00024657,2]
[332121332,1720973441087,-500.0,0.00024657,2]
[332121333,1720973441096,-500.0,0.00024657,2]
[332121334,1720973441106,-500.0,0.00024657,2]
[332121335,1720973441115,-500.0,0.00024657,2]
[332121336,1720973441124,-500.0,0.00024657,2]
[332121337,1720973441133,-500.0,0.00024657,2]
[332121338,1720973441142,-500.0,0.00024657,2]
[332121339,1720973441155,-500.0,0.00024657,2]
[332121340,1720973441164,-500.0,0.00024657,2]
[332121341,1720973441173,-500.0,0.00024657,2]
[332121342,1720973441183,-500.0,0.00024657,2]
[332121343,1720973441192,-500.0,0.00024657,2]
[332121344,1720973441201,-500.0,0.00024657,2]
[332121345,1720973441210,-500.0,0.00024657,2]
[332121346,1720973441220,-500.0,0.00024657,2]
[332121347,1720973441228,-500.0,0.00024657,2]
[332121348,1720973441238,-500.0,0.00024657,2]
[332121349,1720973441247,-802.97,0.00024657,2]
[332121350,1720973441256,-500.0,0.00024657,2]
[332121351,1720973441265,-500.0,0.00024657,2]
[332121352,1720973441274,-512.70220539,0.00024657,2]
[332121353,1720973441284,-500.0,0.00024657,2]
[332121354,1720973441293,-500.0,0.00024657,2]
[332121355,1720973441302,-500.0,0.00024657,2]
[332121356,1720973441312,-500.0,0.00024657,2]
[332121357,1720973441321,-4002.68,0.00024657,2]
[332121358,1720973441330,-500.0,0.00024657,2]
[332121359,1720973441339,-184.87929523,0.00024657,2]
[332121360,1720973441349,-500.0,0.00024657,2]
[332121361,1720973441358,-500.0,0.00024657,2]
[332121362,1720973441368,-500.0,0.00024657,2]
[332121363,1720973441377,-500.0,0.00024657,2]
[332121364,1720973441388,-500.0,0.00024657,2]
[332121365,1720973441397,-500.0,0.00024657,2]
[332121366,1720973441408,-500.0,0.00024657,2]
[332121367,1720973441417,-500.0,0.00024657,2]
[332121368,1720973441426,-500.0,0.00024657,2]
[332121369,1720973441436,-500.0,0.00024657,2]
[332121370,1720973441445,-500.0,0.00024657,2]
[332121371,1720973441454,-500.0,0.00024657,2]
[332121372,1720973441463,-500.0,0.00024657,2]
[332121373,1720973441472,-500.0,0.00024657,2]
[332121374,1720973441482,-500.0,0.00024657,2]
[332121375,1720973441492,-500.0,0.00024657,2]
[332121376,1720973441501,-500.0,0.00024657,2]
[332121377,1720973441582,-500.0,0.00024657,2]
[332121378,1720973441592,-500.0,0.00024657,2]
[332121379,1720973441601,-500.0,0.00024657,2]
[332121380,1720973441610,-500.0,0.00024657,2]
[332121381,1720973441620,-500.0,0.00024657,2]
[332121382,1720973441630,-500.0,0.00024657,2]
[332121383,1720973441640,-500.0,0.00024657,2]
[332121384,1720973441649,-500.0,0.00024657,2]
[332121385,1720973441658,-493.80683639,0.00024657,2]
[332121386,1720973441667,-500.0,0.00024657,2]
[332121387,1720973441676,-500.0,0.00024657,2]
[332121388,1720973441685,-500.0,0.00024657,2]
[332121389,1720973441695,-500.0,0.00024657,2]
[332121390,1720973441704,-500.0,0.00024657,2]
[332121391,1720973441714,-500.0,0.00024657,2]
[332121392,1720973441724,-500.0,0.00024657,2]
[332121393,1720973441735,-500.0,0.00024657,2]
[332121394,1720973441744,-500.0,0.00024657,2]
[332121395,1720973441754,-548.37066457,0.00024657,2]
[332121396,1720973441763,-500.0,0.00024657,2]
[332121397,1720973441772,-500.0,0.00024657,2]
[332121398,1720973441782,-500.0,0.00024657,2]
[332121399,1720973441791,-500.0,0.00024657,2]
[332121400,1720973441802,-500.0,0.00024657,2]
[332121401,1720973441812,-500.0,0.00024657,2]
[332121402,1720973441821,-1017.97,0.00024657,2]
[332121403,1720973441830,-500.0,0.00024657,2]
[332121404,1720973441839,-505.10332189,0.00024657,2]
[332121405,1720973441849,-500.0,0.00024657,2]
[332121406,1720973441858,-572.20994189,0.00024657,2]
[332121407,1720973441867,-500.0,0.00024657,2]
[332121408,1720973441877,-505.8449559,0.00024657,2]
[332121409,1720973441886,-500.0,0.00024657,2]
[332121410,1720973441895,-500.0,0.00024657,2]
[332121411,1720973441905,-500.0,0.00024657,2]
[332121412,1720973441914,-520.01106058,0.00024657,2]
[332121413,1720973441923,-540.05567798,0.00024657,2]
[332121414,1720973441932,-500.0,0.00024657,2]
[332121415,1720973441941,-500.0,0.00024657,2]
[332121416,1720973441951,-500.0,0.00024657,2]
[332121417,1720973441960,-500.0,0.00024657,2]
[332121418,1720973441970,-500.0,0.00024657,2]
[332121419,1720973441979,-500.0,0.00024657,2]
[332121420,1720973441989,-500.0,0.00024657,2]
[332121421,1720973441998,-500.0,0.00024657,2]
[332121422,1720973442007,-543.39033417,0.00024657,2]
[332121423,1720973442018,-500.0,0.00024657,2]
[332121424,1720973442029,-500.0,0.00024657,2]
[332121425,1720973442038,-500.0,0.00024657,2]
[332121426,1720973442047,-500.0,0.00024657,2]
[332121427,1720973442057,-500.0,0.00024657,2]
[332121428,1720973442066,-500.0,0.00024657,2]
[332121429,1720973442075,-500.0,0.00024657,2]
[332121430,1720973442084,-500.0,0.00024657,2]
[332121431,1720973442093,-500.0,0.00024657,2]
[332121432,1720973442102,-500.0,0.00024657,2]
[332121433,1720973442112,-500.0,0.00024657,2]
[332121434,1720973442122,-500.0,0.00024657,2]
[332121435,1720973442131,-500.0,0.00024657,2]
[332121436,1720973442141,-500.0,0.00024657,2]
[332121437,1720973442150,-500.0,0.00024657,2]
[332121438,1720973442159,-500.0,0.00024657,2]
[332121439,1720973442168,-503.69316645,0.00024657,2]
[332121440,1720973442177,-500.0,0.00024657,2]
[332121441,1720973442186,-500.0,0.00024657,2]
[332121442,1720973442195,-500.0,0.00024657,2]
[332121443,1720973442206,-500.0,0.00024657,2]
[332121444,1720973442215,-500.0,0.00024657,2]
[332121445,1720973442224,-500.0,0.00024657,2]
[332121446,1720973442233,-500.0,0.00024657,2]
[332121447,1720973442242,-500.0,0.00024657,2]
[332121448,1720973442252,-500.0,0.00024657,2]
[332121449,1720973442261,-500.0,0.00024657,2]
[332121450,1720973442270,-509.34027352,0.00024657,2]
[332121451,1720973442279,-500.0,0.00024657,2]
[332121452,1720973442288,-500.0,0.00024657,2]
[332121453,1720973442297,-500.0,0.00024657,2]
[332121454,1720973442306,-500.0,0.00024657,2]
[332121455,1720973442315,-500.0,0.00024657,2]
[332121456,1720973442324,-500.0,0.00024657,2]
[332121457,1720973442334,-500.0,0.00024657,2]
[332121458,1720973442343,-500.0,0.00024657,2]
[332121459,1720973442352,-500.0,0.00024657,2]
[332121460,1720973442361,-500.0,0.00024657,2]
[332121461,1720973442371,-500.0,0.00024657,2]
[332121462,1720973442381,-502.29,0.00024657,2]
[332121463,1720973442390,-506.65033317,0.00024657,2]
[332121464,1720973442399,-503.54420116,0.00024657,2]
[332121465,1720973442408,-500.0,0.00024657,2]
[332121466,1720973442417,-500.0,0.00024657,2]
[332121467,1720973442427,-559.04931676,0.00024657,2]
[332121468,1720973442436,-500.0,0.00024657,2]
[332121469,1720973442446,-500.0,0.00024657,2]
[332121470,1720973442455,-510.41277995,0.00024657,2]
[332121471,1720973442465,-500.0,0.00024657,2]
[332121472,1720973442474,-500.0,0.00024657,2]
[332121473,1720973442484,-8399.38,0.00024657,2]
[332121474,1720973442493,-500.0,0.00024657,2]
[332121475,1720973442502,-500.0,0.00024657,2]
[332121476,1720973442511,-500.0,0.00024657,2]
[332121477,1720973442520,-292.99366671,0.00024657,2]
[332121478,1720973442530,-500.0,0.00024657,2]
[332121479,1720973442539,-500.0,0.00024657,2]
[332121480,1720973442548,-500.0,0.00024657,2]
[332121481,1720973442557,-500.0,0.00024657,2]
[332121482,1720973442566,-500.0,0.00024657,2]
[332121483,1720973442576,-500.0,0.00024657,2]
[332121484,1720973442585,-500.0,0.00024657,2]
[332121485,1720973442594,-500.0,0.00024657,2]
[332121486,1720973442603,-500.0,0.00024657,2]
[332121487,1720973442612,-500.0,0.00024657,2]
[332121488,1720973442622,-500.0,0.00024657,2]
[332121489,1720973442631,-500.0,0.00024657,2]
[332121490,1720973442640,-500.0,0.00024657,2]
[332121491,1720973442650,-500.0,0.00024657,2]
[332121492,1720973442659,-500.0,0.00024657,2]
[332121493,1720973442669,-500.0,0.00024657,2]
[332121494,1720973442679,-500.0,0.00024657,2]
[332121495,1720973442688,-500.0,0.00024657,2]
[332121496,1720973442697,-500.0,0.00024657,2]
[332121497,1720973442707,-500.0,0.00024657,2]
[332121498,1720973442716,-500.0,0.00024657,2]
[332121499,1720973442727,-511.73812276,0.00024657,2]
[332121500,1720973442738,-500.0,0.00024657,2]
[332121501,1720973442747,-500.0,0.00024657,2]
[332121502,1720973442756,-500.0,0.00024657,2]
[332121503,1720973442767,-500.0,0.00024657,4]
[332121504,1720973442776,-500.0,0.00024657,2]
[332121505,1720973442785,-500.0,0.00024657,2]
[332121506,1720973442794,-500.0,0.00024657,2]
[332121507,1720973442805,-500.0,0.00024657,2]
[332121508,1720973442814,-500.0,0.00024657,2]
[332121509,1720973442823,-1444.19,0.00024657,2]
[332121511,1720973442832,-500.0,0.00024657,2]
[332121512,1720973442842,-500.0,0.00024657,2]
[332121513,1720973442851,-500.0,0.00024657,2]
[332121514,1720973442860,-443.2690371,0.00024657,2]
[332121515,1720973442871,-500.0,0.00024657,2]
[332121517,1720973442881,-500.0,0.00024657,2]
[332121518,1720973442890,-500.0,0.00024657,2]
[332121521,1720973442899,-500.0,0.00024657,2]
[332121523,1720973442908,-500.0,0.00024657,2]
[332121524,1720973442918,-500.0,0.00024657,2]
[332121526,1720973442927,-500.0,0.00024657,2]
[332121528,1720973442937,-500.0,0.00024657,2]
[332121530,1720973442946,-500.0,0.00024657,2]
[332121532,1720973442956,-500.0,0.00024657,2]
[332121534,1720973442965,-563.39,0.00024657,2]
[332121536,1720973442975,-563.39,0.00024657,2]
[332121538,1720973442984,-531.28839874,0.00024657,2]
[332121540,1720973442994,-563.39,0.00024657,2]
[332121543,1720973443003,-563.39,0.00024657,2]
[332121545,1720973443013,-563.39,0.00024657,2]
[332121547,1720973443022,-563.39,0.00024657,2]
[332121549,1720973443031,-500.0,0.00024657,2]
[332121551,1720973443040,-500.0,0.00024657,2]
[332121552,1720973443050,-500.0,0.00024657,2]
[332121553,1720973443059,-500.0,0.00024657,2]
[332121555,1720973443068,-500.0,0.00024657,2]
[332121557,1720973443077,-500.0,0.00024657,2]
[332121559,1720973443087,-500.0,0.00024657,2]
[332121561,1720973443096,-500.0,0.00024657,2]
[332121563,1720973443105,-500.0,0.00024657,2]
[332121565,1720973443114,-500.0,0.00024657,2]
[332121567,1720973443125,-500.0,0.00024657,2]